OrganisationNameLabel,OrganisationURI,EffectiveDate,Directorate/ServiceWhereExpenditureIncurred,ServiceCategoryLabel,ServiceCategoryURI,Supplier,SupplierRegisteredCompany Number,PaymentDate,TransactionNumber,NetAmount,IrrecoverableVAT,PurposeOfSpend,ProcurementClassification:ProclassLabel,ProcrementClassification:ProClassCode
South Lakeland District Council,http://opendatacommunities.org/id/district-council/south-lakeland,31/07/2020,Support Services,Cultural Environmental Regulatory & Planning Services,http://opendatacommunities.org/def/concept/finance/sercop/objective/104,CUMBRIA COUNTY COUNCIL,,13/07/2020,110189,250,0,Contribution to the Furness Line,908000,Public Bodies Council support services
South Lakeland District Council,http://opendatacommunities.org/id/district-council/south-lakeland,31/07/2020,Support Services,Cultural Environmental Regulatory & Planning Services,http://opendatacommunities.org/def/concept/finance/sercop/objective/104,CUMBRIA COUNTY COUNCIL,,13/07/2020,110190,250,0,Contribution to the Lakes Line,908000,Public Bodies Council support services
South Lakeland District Council,http://opendatacommunities.org/id/district-council/south-lakeland,31/07/2020,Support Services,Central Services,http://opendatacommunities.org/def/concept/finance/sercop/objective/102,STAVELEY WITH INGS PARISH COUNCIL,,20/07/2020,110602,250,0,Locality donation to fund converting of,908000,Public Bodies Council support services
South Lakeland District Council,http://opendatacommunities.org/id/district-council/south-lakeland,31/07/2020,Support Services,Central Services,http://opendatacommunities.org/def/concept/finance/sercop/objective/102,PHS GROUP PLC,,08/07/2020,109108,258.36,0,Low Risk Waste Collection & Sanitary,131312,Cleaning & Janitorial Washroom Sanitat
South Lakeland District Council,http://opendatacommunities.org/id/district-council/south-lakeland,31/07/2020,Support Services,Central Services,http://opendatacommunities.org/def/concept/finance/sercop/objective/102,CUMBRIA WASTE RECYCLING LTD,3162439,27/07/2020,110681,258.6,0,SLH Wheelie Bin & Skip Emptying,182012,Environment Waste Management Recycling
South Lakeland District Council,http://opendatacommunities.org/id/district-council/south-lakeland,31/07/2020,Business Support Community Services,Cultural Environmental Regulatory & Planning Services,http://opendatacommunities.org/def/concept/finance/sercop/objective/104,EK MOTOR FACTORS LTD,838524,15/07/2020,110543,262.3,0,Parts,381400,Vehicle Mgt Maintenance
South Lakeland District Council,http://opendatacommunities.org/id/district-council/south-lakeland,31/07/2020,Business Support Community Services,Cultural Environmental Regulatory & Planning Services,http://opendatacommunities.org/def/concept/finance/sercop/objective/104,LANCASHIRE DAF,,22/07/2020,110696,263.36,0,Parts,381400,Vehicle Mgt Maintenance
South Lakeland District Council,http://opendatacommunities.org/id/district-council/south-lakeland,31/07/2020,Social Enterprise Admin,Cultural Environmental Regulatory & Planning Services,http://opendatacommunities.org/def/concept/finance/sercop/objective/104,NEWSQUEST MEDIA GROUP LTD,3102566,15/07/2020,110417,264,0,PUBLIC NOTICES FOR PLANNING 1 APRIL - 31,191000,Facilities Advertising
South Lakeland District Council,http://opendatacommunities.org/id/district-council/south-lakeland,31/07/2020,Westmorland Centre Parking Office,Cultural Environmental Regulatory & Planning Services,http://opendatacommunities.org/def/concept/finance/sercop/objective/104,J Kydd,313348,20/07/2020,110625,275,0,Aeration of Windermere Football Field,391311,Construction Open Spaces Repair & Mtce
South Lakeland District Council,http://opendatacommunities.org/id/district-council/south-lakeland,31/07/2020,Business Support Community Services,Cultural Environmental Regulatory & Planning Services,http://opendatacommunities.org/def/concept/finance/sercop/objective/104,S J Bargh,532272,27/07/2020,110759,276.2,0,MOTs 2020/21 & vehicle cleaning,381400,Vehicle Mgt Maintenance
South Lakeland District Council,http://opendatacommunities.org/id/district-council/south-lakeland,31/07/2020,Business Support Community Services,Cultural Environmental Regulatory & Planning Services,http://opendatacommunities.org/def/concept/finance/sercop/objective/104,AINSWORTH'S GARAGE,,13/07/2020,110290,276.25,0,Repairs,381400,Vehicle Mgt Maintenance
South Lakeland District Council,http://opendatacommunities.org/id/district-council/south-lakeland,31/07/2020,Business Support Community Services,Cultural Environmental Regulatory & Planning Services,http://opendatacommunities.org/def/concept/finance/sercop/objective/104,LANCASHIRE DAF,,13/07/2020,110393,280.75,0,Parts,381400,Vehicle Mgt Maintenance
South Lakeland District Council,http://opendatacommunities.org/id/district-council/south-lakeland,31/07/2020,Business Support Community Services,Cultural Environmental Regulatory & Planning Services,http://opendatacommunities.org/def/concept/finance/sercop/objective/104,SOLWAY DAF,1393710,13/07/2020,110280,280.76,0,Parts,381000,Vehicle Mgt Commercial
South Lakeland District Council,http://opendatacommunities.org/id/district-council/south-lakeland,31/07/2020,Business Support Community Services,Cultural Environmental Regulatory & Planning Services,http://opendatacommunities.org/def/concept/finance/sercop/objective/104,FAUN ZOELLER (UK) LTD,751804,15/07/2020,110460,281.2,0,Parts & repairs,381400,Vehicle Mgt Maintenance
South Lakeland District Council,http://opendatacommunities.org/id/district-council/south-lakeland,31/07/2020,Support Services,External Trading Accounts,,Ulverston Properties Limited,,20/07/2020,110594,281.67,0,Ulverston Business Centre,190000,Facilities & Management Services
South Lakeland District Council,http://opendatacommunities.org/id/district-council/south-lakeland,31/07/2020,Business Support Community Services,Cultural Environmental Regulatory & Planning Services,http://opendatacommunities.org/def/concept/finance/sercop/objective/104,LANCASHIRE DAF,,13/07/2020,110362,295,0,Parts,381400,Vehicle Mgt Maintenance
South Lakeland District Council,http://opendatacommunities.org/id/district-council/south-lakeland,31/07/2020,Business Support Community Services,Cultural Environmental Regulatory & Planning Services,http://opendatacommunities.org/def/concept/finance/sercop/objective/104,ARCO LIMITED,133804,15/07/2020,110549,296,0,Cleaning materials,141100,Clothing Protective
South Lakeland District Council,http://opendatacommunities.org/id/district-council/south-lakeland,31/07/2020,Human Resources,Central Services,http://opendatacommunities.org/def/concept/finance/sercop/objective/102,Thompsons Solicitors,,06/07/2020,108911,300,0,Provision of Legal Services,261200,HR Professional & Advisory Services
South Lakeland District Council,http://opendatacommunities.org/id/district-council/south-lakeland,31/07/2020,Support Services,Non-Service Payments,,COMPUTERSHARE VOUCHER SERVICES LTD,4968447,13/07/2020,110299,303,0,Child Care Vouchers 20/21,202100,Financial Services Subscriptions
South Lakeland District Council,http://opendatacommunities.org/id/district-council/south-lakeland,31/07/2020,Social Enterprise Admin,Cultural Environmental Regulatory & Planning Services,http://opendatacommunities.org/def/concept/finance/sercop/objective/104,NEWSQUEST MEDIA GROUP LTD,3102566,20/07/2020,110563,308,0,PUBLIC NOTICES FOR PLANNING 1 APRIL - 31,191000,Facilities Advertising
South Lakeland District Council,http://opendatacommunities.org/id/district-council/south-lakeland,31/07/2020,Social Enterprise Admin,Cultural Environmental Regulatory & Planning Services,http://opendatacommunities.org/def/concept/finance/sercop/objective/104,NEWSQUEST MEDIA GROUP LTD,3102566,20/07/2020,110561,309.1,0,PUBLIC NOTICES FOR PLANNING 1 APRIL - 31,191000,Facilities Advertising
South Lakeland District Council,http://opendatacommunities.org/id/district-council/south-lakeland,31/07/2020,Business Support Community Services,Cultural Environmental Regulatory & Planning Services,http://opendatacommunities.org/def/concept/finance/sercop/objective/104,HYDRAIR TRUCK & TRAILER PARTS LTD,,20/07/2020,110573,310.72,0,Parts,381500,Vehicle Mgt Parts
South Lakeland District Council,http://opendatacommunities.org/id/district-council/south-lakeland,31/07/2020,Support Services,Cultural Environmental Regulatory & Planning Services,http://opendatacommunities.org/def/concept/finance/sercop/objective/104,NEWSQUEST MEDIA GROUP LTD,3102566,20/07/2020,110562,330,0,'intent to sell an asset of community,191000,Facilities Advertising
South Lakeland District Council,http://opendatacommunities.org/id/district-council/south-lakeland,31/07/2020,Case Management Regulatory,Cultural Environmental Regulatory & Planning Services,http://opendatacommunities.org/def/concept/finance/sercop/objective/104,BSI (MEMBERSHIP),,08/07/2020,110097,334.4,0,BSI SUBSCRIBING MEMBERSHIP PERIOD,202100,Financial Services Subscriptions
South Lakeland District Council,http://opendatacommunities.org/id/district-council/south-lakeland,31/07/2020,Case Management Account Mgmt,Central Services,http://opendatacommunities.org/def/concept/finance/sercop/objective/102,APSE,6735100,27/07/2020,110810,338,0,Project Management in Local Government,202100,Financial Services Subscriptions
South Lakeland District Council,http://opendatacommunities.org/id/district-council/south-lakeland,31/07/2020,ICT Group,Central Services,http://opendatacommunities.org/def/concept/finance/sercop/objective/102,The Networking People (Northwest) LTD,,20/07/2020,110620,339.2,0,for Town View Fields Firewall,270000,Information Communications Technology
South Lakeland District Council,http://opendatacommunities.org/id/district-council/south-lakeland,31/07/2020,Support Services,Non-Service Payments,,BUSY BEES BENEFITS LTD,6758298,13/07/2020,110204,345,0,Chidl Care Vouchers 20/21,202100,Financial Services Subscriptions
South Lakeland District Council,http://opendatacommunities.org/id/district-council/south-lakeland,31/07/2020,Case Management People,Housing Services,http://opendatacommunities.org/def/concept/finance/sercop/objective/108,Windermere Park,,08/07/2020,110222,350,0,Accommodation 29/06/2020 - 05/07/2020,250000,Housing
South Lakeland District Council,http://opendatacommunities.org/id/district-council/south-lakeland,31/07/2020,Case Management People,Housing Services,http://opendatacommunities.org/def/concept/finance/sercop/objective/108,Windermere Park,,08/07/2020,110223,350,0,Accommodation 29/06/2020 - 05/07/2020,250000,Housing
South Lakeland District Council,http://opendatacommunities.org/id/district-council/south-lakeland,31/07/2020,Support Services,Central Services,http://opendatacommunities.org/def/concept/finance/sercop/objective/102,St John's Chambers,,13/07/2020,110436,350,0,legal advice on Kendal Golf Club -,281200,Legal Services General Support
South Lakeland District Council,http://opendatacommunities.org/id/district-council/south-lakeland,31/07/2020,Case Management People,Housing Services,http://opendatacommunities.org/def/concept/finance/sercop/objective/108,Windermere Park,,15/07/2020,110544,350,0,Accommodation 06/07/2020 - 12/07/2020,250000,Housing
South Lakeland District Council,http://opendatacommunities.org/id/district-council/south-lakeland,31/07/2020,Case Management Account Mgmt,Cultural Environmental Regulatory & Planning Services,http://opendatacommunities.org/def/concept/finance/sercop/objective/104,John Barker,,29/07/2020,110869,350,0,1 bench seat LVS @ 1.95m long including,219999,Furniture Not Elsewhere Classified
South Lakeland District Council,http://opendatacommunities.org/id/district-council/south-lakeland,31/07/2020,Business Support Community Services,Cultural Environmental Regulatory & Planning Services,http://opendatacommunities.org/def/concept/finance/sercop/objective/104,J R RICHARDSON LTD,2225792,08/07/2020,110238,354.35,0,Vehicle washing consumables,381500,Vehicle Mgt Parts
South Lakeland District Council,http://opendatacommunities.org/id/district-council/south-lakeland,31/07/2020,Case Management Account Mgmt,Cultural Environmental Regulatory & Planning Services,http://opendatacommunities.org/def/concept/finance/sercop/objective/104,SOUTH LAKES TREE SURGEONS & LANDSCAPES,5342745,13/07/2020,110437,360,0,Removal of fallen oak tree in Rothay,241210,Horticultural Tree Trimming
South Lakeland District Council,http://opendatacommunities.org/id/district-council/south-lakeland,31/07/2020,Support Services,Central Services,http://opendatacommunities.org/def/concept/finance/sercop/objective/102,JAMES BUTTON & CO,,13/07/2020,110297,362.5,0,Licensing Training Subscription,281300,Legal Services Legal Opinion
South Lakeland District Council,http://opendatacommunities.org/id/district-council/south-lakeland,31/07/2020,Support Services,Central Services,http://opendatacommunities.org/def/concept/finance/sercop/objective/102,JAMES BUTTON & CO,,13/07/2020,110297,362.5,0,Licensing Training Subscription,281300,Legal Services Legal Opinion
South Lakeland District Council,http://opendatacommunities.org/id/district-council/south-lakeland,31/07/2020,Business Support Community Services,Cultural Environmental Regulatory & Planning Services,http://opendatacommunities.org/def/concept/finance/sercop/objective/104,HAKO MACHINES LIMITED,1414225,08/07/2020,110236,376.88,0,Parts & repairs,131000,Cleaning & Janitorial Cleaning Materials
South Lakeland District Council,http://opendatacommunities.org/id/district-council/south-lakeland,31/07/2020,Support Services,Housing Services,http://opendatacommunities.org/def/concept/finance/sercop/objective/108,HEATONS MBI,,13/07/2020,110191,381.36,0,Sprint - High Back Task Chair with,211200,Furniture & Soft Furn Office Furniture
South Lakeland District Council,http://opendatacommunities.org/id/district-council/south-lakeland,31/07/2020,Case Management Account Mgmt,Cultural Environmental Regulatory & Planning Services,http://opendatacommunities.org/def/concept/finance/sercop/objective/104,GLASDON UK LTD,2160576,13/07/2020,110434,390.49,0,"Glasdon Phoenix bench in black, to be",109999,Building Not Elsewhere Classified
South Lakeland District Council,http://opendatacommunities.org/id/district-council/south-lakeland,31/07/2020,Westmorland Centre Parking Office,Other Items,,THE SIGN MAN,5748839,13/07/2020,110380,395,0,Covid-19 signs for Ferry Nab,102400,Building Signage
South Lakeland District Council,http://opendatacommunities.org/id/district-council/south-lakeland,31/07/2020,ICT Group,Central Services,http://opendatacommunities.org/def/concept/finance/sercop/objective/102,Lesar UK,4936232,22/07/2020,110755,395,0,as per quote 115390,271510,ICT Application Service Provision
South Lakeland District Council,http://opendatacommunities.org/id/district-council/south-lakeland,31/07/2020,Case Management People,Housing Services,http://opendatacommunities.org/def/concept/finance/sercop/objective/108,D Clark Properties,,13/07/2020,110441,400,0,Accommodation 2 weeks from w/c,250000,Housing
South Lakeland District Council,http://opendatacommunities.org/id/district-council/south-lakeland,31/07/2020,Case Management People,Housing Services,http://opendatacommunities.org/def/concept/finance/sercop/objective/108,D Clark Properties,,20/07/2020,110634,400,0,"Accommodation The Lodge, Barrow",250000,Housing
South Lakeland District Council,http://opendatacommunities.org/id/district-council/south-lakeland,31/07/2020,Case Management People,Housing Services,http://opendatacommunities.org/def/concept/finance/sercop/objective/108,D Clark Properties,,27/07/2020,110795,400,0,"Accommodation The Lodge, Barrow",250000,Housing
South Lakeland District Council,http://opendatacommunities.org/id/district-council/south-lakeland,31/07/2020,Case Management People,Housing Services,http://opendatacommunities.org/def/concept/finance/sercop/objective/108,HOME GROUP LTD,IP22981R,29/07/2020,110884,400.59,0,Rent in advance,250000,Housing
South Lakeland District Council,http://opendatacommunities.org/id/district-council/south-lakeland,31/07/2020,Business Support Community Services,Cultural Environmental Regulatory & Planning Services,http://opendatacommunities.org/def/concept/finance/sercop/objective/104,HYDRAIR TRUCK & TRAILER PARTS LTD,,20/07/2020,110572,407.05,0,Parts,381500,Vehicle Mgt Parts
South Lakeland District Council,http://opendatacommunities.org/id/district-council/south-lakeland,31/07/2020,Case Management People,Housing Services,http://opendatacommunities.org/def/concept/finance/sercop/objective/108,IMPACT HOUSING ASSOCIATION LTD,IP21411R,29/07/2020,110885,411.19,0,"Rent in advance 47 Nelson Street,",250000,Housing
South Lakeland District Council,http://opendatacommunities.org/id/district-council/south-lakeland,31/07/2020,Support Services,Central Services,http://opendatacommunities.org/def/concept/finance/sercop/objective/102,BEVAN BRITTAN,OC309219,27/07/2020,110805,411.7,0,report on delegated authority to award,280000,Legal Services
South Lakeland District Council,http://opendatacommunities.org/id/district-council/south-lakeland,31/07/2020,ICT Group,Central Services,http://opendatacommunities.org/def/concept/finance/sercop/objective/102,Insight Direct (Uk) Ltd,2579852,06/07/2020,108900,412.05,0,"techair entry level 15.6"" Black Laptop",271200,ICT Hardware
South Lakeland District Council,http://opendatacommunities.org/id/district-council/south-lakeland,31/07/2020,Case Management People,Housing Services,http://opendatacommunities.org/def/concept/finance/sercop/objective/108,CRUDEN PROPERTY SERVICES LTD,3851237,20/07/2020,110567,414.18,0,Works completed at various addresses,391111,Construction Buildings Repair & Mtce
South Lakeland District Council,http://opendatacommunities.org/id/district-council/south-lakeland,31/07/2020,Case Management People,Housing Services,http://opendatacommunities.org/def/concept/finance/sercop/objective/108,SOUTH LAKES HOUSING RENT A/C,,13/07/2020,110439,423.84,0,"Rent in advance 16 Crake Mount, Spark",191700,Facilities Property Management
South Lakeland District Council,http://opendatacommunities.org/id/district-council/south-lakeland,31/07/2020,Case Management Account Mgmt,SLDC as Agent,,PAY BY PHONE (PAYPOINT),,22/07/2020,110714,424.83,0,Fees payable for use of Pay-by-Phone at,351400,Street & Traffic Traffic Control
South Lakeland District Council,http://opendatacommunities.org/id/district-council/south-lakeland,31/07/2020,Business Support Community Services,Central Services,http://opendatacommunities.org/def/concept/finance/sercop/objective/102,CUMBRIA COUNTY COUNCIL,,27/07/2020,110801,432,0,LAND CHARGE SEARCH ENQUIRIES COMMONS,908000,Public Bodies Council support services
South Lakeland District Council,http://opendatacommunities.org/id/district-council/south-lakeland,31/07/2020,ICT Group,Central Services,http://opendatacommunities.org/def/concept/finance/sercop/objective/102,IT PROFESSIONAL SERVICES (ITPS),,20/07/2020,110569,450,0,2 year SAN certificate for Skype for,279999,ICT Not Elsewhere Classified
South Lakeland District Council,http://opendatacommunities.org/id/district-council/south-lakeland,31/07/2020,Case Management People,Housing Services,http://opendatacommunities.org/def/concept/finance/sercop/objective/108,Yascom Properties,,22/07/2020,110743,450,0,Rent in advance,250000,Housing
South Lakeland District Council,http://opendatacommunities.org/id/district-council/south-lakeland,31/07/2020,Business Support Community Services,Cultural Environmental Regulatory & Planning Services,http://opendatacommunities.org/def/concept/finance/sercop/objective/104,TTS (GARSTANG) LTD,4990573,13/07/2020,110284,464.11,0,Reapir weigher,381500,Vehicle Mgt Parts
South Lakeland District Council,http://opendatacommunities.org/id/district-council/south-lakeland,31/07/2020,Case Management Regulatory,Central Services,http://opendatacommunities.org/def/concept/finance/sercop/objective/102,ADECCO UK LIMITED,593232,08/07/2020,108871,477.6,0,Agency Staff for Customer & Commercial,261400,HR Temporary & Agency Staff
South Lakeland District Council,http://opendatacommunities.org/id/district-council/south-lakeland,31/07/2020,ICT Group,Central Services,http://opendatacommunities.org/def/concept/finance/sercop/objective/102,DAISY COMMUNICATIONS LTD,4145329,13/07/2020,110401,494.91,0,"Daisy Line Rentel costs, covers 1/4/20",271700,ICT Telecommunications Fixed
South Lakeland District Council,http://opendatacommunities.org/id/district-council/south-lakeland,31/07/2020,ICT Group,Central Services,http://opendatacommunities.org/def/concept/finance/sercop/objective/102,Insight Direct (Uk) Ltd,2579852,29/07/2020,110779,496.84,0,Plantronics Voyager Focus For Skype For,271200,ICT Hardware
South Lakeland District Council,http://opendatacommunities.org/id/district-council/south-lakeland,31/07/2020,Case Management Account Mgmt,Cultural Environmental Regulatory & Planning Services,http://opendatacommunities.org/def/concept/finance/sercop/objective/104,Greaves Tree Services,,08/07/2020,110093,500,0,Fell part winblown conifer at Grange,241600,Horticultural Trees & Shrubs
South Lakeland District Council,http://opendatacommunities.org/id/district-council/south-lakeland,31/07/2020,Support Services,Central Services,http://opendatacommunities.org/def/concept/finance/sercop/objective/102,SEFTON COUNCIL,2832920,08/07/2020,110192,500,0,North West Legal Consortium 2020/2021,202100,Financial Services Subscriptions
South Lakeland District Council,http://opendatacommunities.org/id/district-council/south-lakeland,31/07/2020,Support Services,Central Services,http://opendatacommunities.org/def/concept/finance/sercop/objective/102,ULVERSTON TOWN COUNCIL,,08/07/2020,110212,500,0,Locality donation to help promote,908000,Public Bodies Council support services
South Lakeland District Council,http://opendatacommunities.org/id/district-council/south-lakeland,31/07/2020,Business Support Community Services,Cultural Environmental Regulatory & Planning Services,http://opendatacommunities.org/def/concept/finance/sercop/objective/104,TAYLOR ENGINEERING & FABRICATIONS LTD,4989359,22/07/2020,110630,500.12,0,Parts,391200,Construction Engineering
South Lakeland District Council,http://opendatacommunities.org/id/district-council/south-lakeland,31/07/2020,Case Management Regulatory,Cultural Environmental Regulatory & Planning Services,http://opendatacommunities.org/def/concept/finance/sercop/objective/104,BSI (MEMBERSHIP),,08/07/2020,110097,501.6,0,BSI SUBSCRIBING MEMBERSHIP PERIOD,202100,Financial Services Subscriptions
South Lakeland District Council,http://opendatacommunities.org/id/district-council/south-lakeland,31/07/2020,Human Resources,Central Services,http://opendatacommunities.org/def/concept/finance/sercop/objective/102,FORBES SOLICITORS,,20/07/2020,110623,502.5,0,Professional Fees,281300,Legal Services Legal Opinion
South Lakeland District Council,http://opendatacommunities.org/id/district-council/south-lakeland,31/07/2020,Case Management Regulatory,Central Services,http://opendatacommunities.org/def/concept/finance/sercop/objective/102,ADECCO UK LIMITED,593232,20/07/2020,110641,505.46,0,Agency Staff for Customer & Commercial,261400,HR Temporary & Agency Staff
South Lakeland District Council,http://opendatacommunities.org/id/district-council/south-lakeland,31/07/2020,Case Management Regulatory,Central Services,http://opendatacommunities.org/def/concept/finance/sercop/objective/102,ADECCO UK LIMITED,593232,08/07/2020,110183,509.44,0,Agency Staff for Customer & Commercial,261400,HR Temporary & Agency Staff
South Lakeland District Council,http://opendatacommunities.org/id/district-council/south-lakeland,31/07/2020,Support Services,Other Items,,David G Bushell Electrical Contractors L,4411165,20/07/2020,110590,512,0,Kendal Recovery Centre at Kendal,101100,Building Electrical
South Lakeland District Council,http://opendatacommunities.org/id/district-council/south-lakeland,31/07/2020,Business Support Community Services,Cultural Environmental Regulatory & Planning Services,http://opendatacommunities.org/def/concept/finance/sercop/objective/104,Castle Group Ltd,2388128,13/07/2020,110288,515,0,HAVS test new equipment,389999,Vehicle Mgt Not Else Class
South Lakeland District Council,http://opendatacommunities.org/id/district-council/south-lakeland,31/07/2020,Case Management People,Housing Services,http://opendatacommunities.org/def/concept/finance/sercop/objective/108,T&G Varley T/A Bardsea Leisure Park,,15/07/2020,110557,525,0,Rent in advance (6 weeks Pitch Fees),250000,Housing
South Lakeland District Council,http://opendatacommunities.org/id/district-council/south-lakeland,31/07/2020,Business Support Community Services,Cultural Environmental Regulatory & Planning Services,http://opendatacommunities.org/def/concept/finance/sercop/objective/104,ARCO LIMITED,133804,22/07/2020,110725,527.56,0,Cleaning materials,141100,Clothing Protective
South Lakeland District Council,http://opendatacommunities.org/id/district-council/south-lakeland,31/07/2020,Business Support Community Services,Cultural Environmental Regulatory & Planning Services,http://opendatacommunities.org/def/concept/finance/sercop/objective/104,TAYLOR ENGINEERING & FABRICATIONS LTD,4989359,27/07/2020,110747,533.88,0,Parts,391200,Construction Engineering
South Lakeland District Council,http://opendatacommunities.org/id/district-council/south-lakeland,31/07/2020,Support Services,Cultural Environmental Regulatory & Planning Services,http://opendatacommunities.org/def/concept/finance/sercop/objective/104,Finkles Restaurant,,13/07/2020,110413,550,0,Participation in the Kendal Courtesy,111200,Catering Food & Beverages
South Lakeland District Council,http://opendatacommunities.org/id/district-council/south-lakeland,31/07/2020,Support Services,Cultural Environmental Regulatory & Planning Services,http://opendatacommunities.org/def/concept/finance/sercop/objective/104,THE QUAKER TAPESTRY KENDAL LTD,,13/07/2020,110414,550,0,Participation in the Kendal Courtesy,291400,Arts & Leisure Services Sport & Fitness
South Lakeland District Council,http://opendatacommunities.org/id/district-council/south-lakeland,31/07/2020,Support Services,Cultural Environmental Regulatory & Planning Services,http://opendatacommunities.org/def/concept/finance/sercop/objective/104,Mrs TK Davies t/a The Bristly Hog,,20/07/2020,110598,550,0,Participation in the Kendal Courtesy,111200,Catering Food & Beverages
South Lakeland District Council,http://opendatacommunities.org/id/district-council/south-lakeland,31/07/2020,Business Support Community Services,Cultural Environmental Regulatory & Planning Services,http://opendatacommunities.org/def/concept/finance/sercop/objective/104,ARCO LIMITED,133804,27/07/2020,110797,560,0,Cleaning materials,141100,Clothing Protective
South Lakeland District Council,http://opendatacommunities.org/id/district-council/south-lakeland,31/07/2020,Case Management Regulatory,Central Services,http://opendatacommunities.org/def/concept/finance/sercop/objective/102,Enterprise Flex-E Rent,,08/07/2020,110242,562.5,0,Refrigerated Van Hire for Private Water,381210,Vehicle Mangement- Hire
South Lakeland District Council,http://opendatacommunities.org/id/district-council/south-lakeland,31/07/2020,Business Support Community Services,Cultural Environmental Regulatory & Planning Services,http://opendatacommunities.org/def/concept/finance/sercop/objective/104,ELIS UK LTD,228604,13/07/2020,110276,567.2,0,Workwear hire 01/04/20 - 31/03/21,161000,Domestic Goods Commercial
South Lakeland District Council,http://opendatacommunities.org/id/district-council/south-lakeland,31/07/2020,Business Support Community Services,Cultural Environmental Regulatory & Planning Services,http://opendatacommunities.org/def/concept/finance/sercop/objective/104,BRIAN ARMISTEAD LTD T/A SINKFALL RECYCLI,4133280,29/07/2020,110858,584.8,0,Tipping charges - green waste,391110,Construction Buildings Construction
South Lakeland District Council,http://opendatacommunities.org/id/district-council/south-lakeland,31/07/2020,Business Support Community Services,Cultural Environmental Regulatory & Planning Services,http://opendatacommunities.org/def/concept/finance/sercop/objective/104,HAKO MACHINES LIMITED,1414225,13/07/2020,110277,587.5,0,Parts & repairs,131000,Cleaning & Janitorial Cleaning Materials
South Lakeland District Council,http://opendatacommunities.org/id/district-council/south-lakeland,31/07/2020,Business Support Community Services,Cultural Environmental Regulatory & Planning Services,http://opendatacommunities.org/def/concept/finance/sercop/objective/104,HAKO MACHINES LIMITED,1414225,13/07/2020,110278,587.5,0,Parts & repairs,131000,Cleaning & Janitorial Cleaning Materials
South Lakeland District Council,http://opendatacommunities.org/id/district-council/south-lakeland,31/07/2020,Business Support Community Services,Cultural Environmental Regulatory & Planning Services,http://opendatacommunities.org/def/concept/finance/sercop/objective/104,HAKO MACHINES LIMITED,1414225,22/07/2020,110703,587.5,0,Parts & repairs,131000,Cleaning & Janitorial Cleaning Materials
South Lakeland District Council,http://opendatacommunities.org/id/district-council/south-lakeland,31/07/2020,Business Support Community Services,Cultural Environmental Regulatory & Planning Services,http://opendatacommunities.org/def/concept/finance/sercop/objective/104,HAKO MACHINES LIMITED,1414225,22/07/2020,110705,587.5,0,Parts & repairs,131000,Cleaning & Janitorial Cleaning Materials
South Lakeland District Council,http://opendatacommunities.org/id/district-council/south-lakeland,31/07/2020,Business Support Community Services,Cultural Environmental Regulatory & Planning Services,http://opendatacommunities.org/def/concept/finance/sercop/objective/104,BRIAN ARMISTEAD LTD T/A SINKFALL RECYCLI,4133280,20/07/2020,110612,589.53,0,Tipping charges - green waste,391110,Construction Buildings Construction
South Lakeland District Council,http://opendatacommunities.org/id/district-council/south-lakeland,31/07/2020,Support Services,Other Items,,THOMAS GRAHAM & SONS LTD,656879,08/07/2020,109139,600,0,5lt hand sanitizer refills - 24 @ 25 -,101400,Building General Materials
South Lakeland District Council,http://opendatacommunities.org/id/district-council/south-lakeland,31/07/2020,Case Management,Housing Services,http://opendatacommunities.org/def/concept/finance/sercop/objective/108,GROWING CONCERNS LTD,,22/07/2020,110772,612,0,Growing Concerns Payment for invoices,391200,Construction Engineering
South Lakeland District Council,http://opendatacommunities.org/id/district-council/south-lakeland,31/07/2020,Business Support Community Services,Cultural Environmental Regulatory & Planning Services,http://opendatacommunities.org/def/concept/finance/sercop/objective/104,DENNIS EAGLE LTD,3794455,22/07/2020,110716,624.18,0,Parts,381300,Vehicle Mgt Industrial
South Lakeland District Council,http://opendatacommunities.org/id/district-council/south-lakeland,31/07/2020,Business Support Community Services,Cultural Environmental Regulatory & Planning Services,http://opendatacommunities.org/def/concept/finance/sercop/objective/104,Harry Park Tyres Ltd,8131208,22/07/2020,110717,625,0,Tyres,381500,Vehicle Mgt Parts
South Lakeland District Council,http://opendatacommunities.org/id/district-council/south-lakeland,31/07/2020,Business Support Community Services,Cultural Environmental Regulatory & Planning Services,http://opendatacommunities.org/def/concept/finance/sercop/objective/104,Harry Park Tyres Ltd,8131208,20/07/2020,110609,630,0,Tyres,381500,Vehicle Mgt Parts
South Lakeland District Council,http://opendatacommunities.org/id/district-council/south-lakeland,31/07/2020,Development Strategy,Cultural Environmental Regulatory & Planning Services,http://opendatacommunities.org/def/concept/finance/sercop/objective/104,Bridget Turnbull,,22/07/2020,110712,640,0,Conservation Officer work. 20 days at,152050,Consultancy Property
South Lakeland District Council,http://opendatacommunities.org/id/district-council/south-lakeland,31/07/2020,Business Support Community Services,Cultural Environmental Regulatory & Planning Services,http://opendatacommunities.org/def/concept/finance/sercop/objective/104,ARCO LIMITED,133804,20/07/2020,110570,643.36,0,Cleaning materials,141100,Clothing Protective
South Lakeland District Council,http://opendatacommunities.org/id/district-council/south-lakeland,31/07/2020,Business Support Community Services,Cultural Environmental Regulatory & Planning Services,http://opendatacommunities.org/def/concept/finance/sercop/objective/104,FURNESS FLUID POWER LTD,5675728,22/07/2020,110718,644.92,0,Repairs,260000,HR
South Lakeland District Council,http://opendatacommunities.org/id/district-council/south-lakeland,31/07/2020,Support Services,Central Services,http://opendatacommunities.org/def/concept/finance/sercop/objective/102,ADECCO UK LIMITED,593232,08/07/2020,110181,653.63,0,"Period End: 08/05/20, TS: T002628613,",261400,HR Temporary & Agency Staff
South Lakeland District Council,http://opendatacommunities.org/id/district-council/south-lakeland,31/07/2020,Case Management Account Mgmt,Cultural Environmental Regulatory & Planning Services,http://opendatacommunities.org/def/concept/finance/sercop/objective/104,SOUTH LAKES TREE SURGEONS & LANDSCAPES,5342745,29/07/2020,110855,680,0,Emergency branch removal,241210,Horticultural Tree Trimming
South Lakeland District Council,http://opendatacommunities.org/id/district-council/south-lakeland,31/07/2020,Support Services,Other Items,,SC Signs T/A Signs Express Lancaster,,27/07/2020,110780,696.5,0,Kendal Market Hall Signs (quote ref:,102400,Building Signage
South Lakeland District Council,http://opendatacommunities.org/id/district-council/south-lakeland,31/07/2020,Support Services,Central Services,http://opendatacommunities.org/def/concept/finance/sercop/objective/102,ANTHONY COLLINS SOLICITORS,OC313432,06/07/2020,108567,700,0,Ref-Haweswater Aqueduct Planning,281300,Legal Services Legal Opinion
South Lakeland District Council,http://opendatacommunities.org/id/district-council/south-lakeland,31/07/2020,Support Services,Central Services,http://opendatacommunities.org/def/concept/finance/sercop/objective/102,ULVERSTON TOWN COUNCIL,,27/07/2020,110794,700,0,Locality donation to fund information,908000,Public Bodies Council support services
South Lakeland District Council,http://opendatacommunities.org/id/district-council/south-lakeland,31/07/2020,Development Implementation,Central Services,http://opendatacommunities.org/def/concept/finance/sercop/objective/102,J S Cleaning Services,,08/07/2020,109119,704,0,Cleaner for SLDC - April 2019 Onwards,131010,Cleaning & Janitorial Cleaning Materials
South Lakeland District Council,http://opendatacommunities.org/id/district-council/south-lakeland,31/07/2020,Business Support Community Services,Cultural Environmental Regulatory & Planning Services,http://opendatacommunities.org/def/concept/finance/sercop/objective/104,TEAL PATENTS LTD,3212208,08/07/2020,108604,720.9,0,Handwash,111100,Catering Equipment & Utensils
South Lakeland District Council,http://opendatacommunities.org/id/district-council/south-lakeland,31/07/2020,Case Management Account Mgmt,Highways & Transport Services,http://opendatacommunities.org/def/concept/finance/sercop/objective/107,METRIC GROUP LIMITED,2560839,22/07/2020,110175,745.5,0,Web Hosting costs 01/04/2020 to,359999,Street & Traffic Not Elsewhere Classifie
South Lakeland District Council,http://opendatacommunities.org/id/district-council/south-lakeland,31/07/2020,ICT Group,Central Services,http://opendatacommunities.org/def/concept/finance/sercop/objective/102,Insight Direct (Uk) Ltd,2579852,15/07/2020,110394,750,0,as per quote Q01462072-1,271200,ICT Hardware
South Lakeland District Council,http://opendatacommunities.org/id/district-council/south-lakeland,31/07/2020,Human Resources,Central Services,http://opendatacommunities.org/def/concept/finance/sercop/objective/102,Skillset Limited,,22/07/2020,110711,750,0,Year 1 costs (software and support) -,261520,Human Resources Training
South Lakeland District Council,http://opendatacommunities.org/id/district-council/south-lakeland,31/07/2020,Business Support Community Services,Cultural Environmental Regulatory & Planning Services,http://opendatacommunities.org/def/concept/finance/sercop/objective/104,LANCASHIRE DAF,,15/07/2020,110539,760.56,0,Parts,381400,Vehicle Mgt Maintenance
South Lakeland District Council,http://opendatacommunities.org/id/district-council/south-lakeland,31/07/2020,Case Management Account Mgmt,Central Services,http://opendatacommunities.org/def/concept/finance/sercop/objective/102,STRAMONGATE PRESS LTD (PRINTING A/C),,13/07/2020,110391,765,0,x15000 A3 Sky Blue Perforated sheets,191600,Facilities Printing
South Lakeland District Council,http://opendatacommunities.org/id/district-council/south-lakeland,31/07/2020,Case Management People,Central Services,http://opendatacommunities.org/def/concept/finance/sercop/objective/102,ADECCO UK LIMITED,593232,08/07/2020,110182,771.6,0,Payment for ,261400,HR Temporary & Agency Staff
South Lakeland District Council,http://opendatacommunities.org/id/district-council/south-lakeland,31/07/2020,Case Management People,Central Services,http://opendatacommunities.org/def/concept/finance/sercop/objective/102,ADECCO UK LIMITED,593232,13/07/2020,110397,771.6,0,Payment for,261400,HR Temporary & Agency Staff
South Lakeland District Council,http://opendatacommunities.org/id/district-council/south-lakeland,31/07/2020,Case Management People,Central Services,http://opendatacommunities.org/def/concept/finance/sercop/objective/102,ADECCO UK LIMITED,593232,20/07/2020,110642,771.6,0,Payment for ,261400,HR Temporary & Agency Staff
South Lakeland District Council,http://opendatacommunities.org/id/district-council/south-lakeland,31/07/2020,Case Management People,Central Services,http://opendatacommunities.org/def/concept/finance/sercop/objective/102,ADECCO UK LIMITED,593232,27/07/2020,110804,771.6,0,Payment for ,261400,HR Temporary & Agency Staff
South Lakeland District Council,http://opendatacommunities.org/id/district-council/south-lakeland,31/07/2020,Case Management Account Mgmt,Cultural Environmental Regulatory & Planning Services,http://opendatacommunities.org/def/concept/finance/sercop/objective/104,CONTINENTAL LANDSCAPES LTD,2108452,13/07/2020,110293,789.24,0,Extra works for grounds maintenance,391310,Construction Open Spaces Construction
South Lakeland District Council,http://opendatacommunities.org/id/district-council/south-lakeland,31/07/2020,Case Management Regulatory,Central Services,http://opendatacommunities.org/def/concept/finance/sercop/objective/102,The Oyster Partnership,5020374,13/07/2020,110398,792,0,Agency Environmental Health Officer,261300,HR Recruitment & Assessment
South Lakeland District Council,http://opendatacommunities.org/id/district-council/south-lakeland,31/07/2020,Case Management Regulatory,Central Services,http://opendatacommunities.org/def/concept/finance/sercop/objective/102,The Oyster Partnership,5020374,13/07/2020,110399,792,0,Agency Environmental Health Officer,261300,HR Recruitment & Assessment
South Lakeland District Council,http://opendatacommunities.org/id/district-council/south-lakeland,31/07/2020,Case Management Regulatory,Central Services,http://opendatacommunities.org/def/concept/finance/sercop/objective/102,The Oyster Partnership,5020374,20/07/2020,110629,792,0,Agency Environmental Health Officer,261300,HR Recruitment & Assessment
South Lakeland District Council,http://opendatacommunities.org/id/district-council/south-lakeland,31/07/2020,Support Services,Cultural Environmental Regulatory & Planning Services,http://opendatacommunities.org/def/concept/finance/sercop/objective/104,NEWSQUEST MEDIA GROUP LTD,3102566,13/07/2020,110370,798.8,0,Half Page Advert for 2 weeks,191000,Facilities Advertising
South Lakeland District Council,http://opendatacommunities.org/id/district-council/south-lakeland,31/07/2020,Case Management People,Housing Services,http://opendatacommunities.org/def/concept/finance/sercop/objective/108,PHS GROUP PLC,,08/07/2020,109124,806.19,0,Sanitary and non-hazardous waste,131312,Cleaning & Janitorial Washroom Sanitat
South Lakeland District Council,http://opendatacommunities.org/id/district-council/south-lakeland,31/07/2020,Human Resources,Central Services,http://opendatacommunities.org/def/concept/finance/sercop/objective/102,Choose Occupational Health,7365943,13/07/2020,110187,817.5,0,Medical Form - A Horner,191800,Facilities Public Relations & Image
South Lakeland District Council,http://opendatacommunities.org/id/district-council/south-lakeland,31/07/2020,Case Management People,Housing Services,http://opendatacommunities.org/def/concept/finance/sercop/objective/108,FIONA & JOHN ARMER,,13/07/2020,110471,839.98,0,"Monthly rent Flat 3, 13 New Rd, Kendal",250000,Housing
South Lakeland District Council,http://opendatacommunities.org/id/district-council/south-lakeland,31/07/2020,Financial Services,SLDC as Agent,,Zurich Municipal (BACS),BR7985,22/07/2020,110639,844.19,0,Insurance Premium including IPT,201800,Financial Services Insurance
South Lakeland District Council,http://opendatacommunities.org/id/district-council/south-lakeland,31/07/2020,Case Management People,Housing Services,http://opendatacommunities.org/def/concept/finance/sercop/objective/108,Ashberry Recruitment,7202591,13/07/2020,110376,849.48,0,Agency staff at Town View Fields,261300,HR Recruitment & Assessment
South Lakeland District Council,http://opendatacommunities.org/id/district-council/south-lakeland,31/07/2020,Locality,Cultural Environmental Regulatory & Planning Services,http://opendatacommunities.org/def/concept/finance/sercop/objective/104,GLASDON UK LTD,2160576,13/07/2020,110433,871.04,0,1 x Stanford seat,109999,Building Not Elsewhere Classified
South Lakeland District Council,http://opendatacommunities.org/id/district-council/south-lakeland,31/07/2020,Support Services,Central Services,http://opendatacommunities.org/def/concept/finance/sercop/objective/102,ADECCO UK LIMITED,593232,08/07/2020,108456,871.5,0,"Period End: 08/05/20, TS: T002628613,",261400,HR Temporary & Agency Staff
South Lakeland District Council,http://opendatacommunities.org/id/district-council/south-lakeland,31/07/2020,Support Services,Central Services,http://opendatacommunities.org/def/concept/finance/sercop/objective/102,ADECCO UK LIMITED,593232,06/07/2020,108609,871.5,0,"Period End: 08/05/20, TS: T002628613,",261400,HR Temporary & Agency Staff
South Lakeland District Council,http://opendatacommunities.org/id/district-council/south-lakeland,31/07/2020,Support Services,Central Services,http://opendatacommunities.org/def/concept/finance/sercop/objective/102,ADECCO UK LIMITED,593232,08/07/2020,110180,871.5,0,"Period End: 08/05/20, TS: T002628613,",261400,HR Temporary & Agency Staff
South Lakeland District Council,http://opendatacommunities.org/id/district-council/south-lakeland,31/07/2020,Support Services,Central Services,http://opendatacommunities.org/def/concept/finance/sercop/objective/102,ADECCO UK LIMITED,593232,20/07/2020,110643,886.03,0,"Period End: 08/05/20, TS: T002628613,",261400,HR Temporary & Agency Staff
South Lakeland District Council,http://opendatacommunities.org/id/district-council/south-lakeland,31/07/2020,Business Support Community Services,SLDC as Agent,,Viewdeck Consulting Limited,,08/07/2020,110215,895,0,Cumbria Choice Consultancy Work,150000,Consultancy
South Lakeland District Council,http://opendatacommunities.org/id/district-council/south-lakeland,31/07/2020,Case Management People,Housing Services,http://opendatacommunities.org/def/concept/finance/sercop/objective/108,Landlord,,08/07/2020,110159,900,0,"Deposit Beetham Road,",250000,Housing
South Lakeland District Council,http://opendatacommunities.org/id/district-council/south-lakeland,31/07/2020,Support Services,Central Services,http://opendatacommunities.org/def/concept/finance/sercop/objective/102,ADECCO UK LIMITED,593232,13/07/2020,110396,936.86,0,"Period End: 08/05/20, TS: T002628613,",261400,HR Temporary & Agency Staff
South Lakeland District Council,http://opendatacommunities.org/id/district-council/south-lakeland,31/07/2020,Support Services,Central Services,http://opendatacommunities.org/def/concept/finance/sercop/objective/102,ADECCO UK LIMITED,593232,27/07/2020,110802,944.13,0,"Period End: 08/05/20, TS: T002628613,",261400,HR Temporary & Agency Staff
South Lakeland District Council,http://opendatacommunities.org/id/district-council/south-lakeland,31/07/2020,Support Services,Other Items,,CRUDEN PROPERTY SERVICES LTD,3851237,13/07/2020,110303,946.91,0,Kendal Recovery Centre at Kendal,391111,Construction Buildings Repair & Mtce
South Lakeland District Council,http://opendatacommunities.org/id/district-council/south-lakeland,31/07/2020,Case Management Regulatory,Central Services,http://opendatacommunities.org/def/concept/finance/sercop/objective/102,The Oyster Partnership,5020374,13/07/2020,110239,"1,000.00",0,Agency Environmental Health Officer,261300,HR Recruitment & Assessment
South Lakeland District Council,http://opendatacommunities.org/id/district-council/south-lakeland,31/07/2020,Support Services,Central Services,http://opendatacommunities.org/def/concept/finance/sercop/objective/102,Leigh's Removals,,13/07/2020,110305,"1,000.00",0,Furniture Removal from Langstone House,250000,Housing
South Lakeland District Council,http://opendatacommunities.org/id/district-council/south-lakeland,31/07/2020,Case Management Regulatory,Central Services,http://opendatacommunities.org/def/concept/finance/sercop/objective/102,The Oyster Partnership,5020374,13/07/2020,110400,"1,000.00",0,Agency Environmental Health Officer,261300,HR Recruitment & Assessment
South Lakeland District Council,http://opendatacommunities.org/id/district-council/south-lakeland,31/07/2020,Case Management Regulatory,Central Services,http://opendatacommunities.org/def/concept/finance/sercop/objective/102,The Oyster Partnership,5020374,22/07/2020,110628,"1,000.00",0,Agency Environmental Health Officer,261300,HR Recruitment & Assessment
South Lakeland District Council,http://opendatacommunities.org/id/district-council/south-lakeland,31/07/2020,Case Management Regulatory,Central Services,http://opendatacommunities.org/def/concept/finance/sercop/objective/102,The Oyster Partnership,5020374,29/07/2020,110782,"1,000.00",0,Agency Environmental Health Officer,261300,HR Recruitment & Assessment
South Lakeland District Council,http://opendatacommunities.org/id/district-council/south-lakeland,31/07/2020,Support Services,Other Items,,THOMAS GRAHAM & SONS LTD,656879,08/07/2020,109132,"1,015.20",0,500ml hand sanitizer Dispensers x 60,101400,Building General Materials
South Lakeland District Council,http://opendatacommunities.org/id/district-council/south-lakeland,31/07/2020,Business Support Community Services,Cultural Environmental Regulatory & Planning Services,http://opendatacommunities.org/def/concept/finance/sercop/objective/104,INNOVATIVE SAFETY SYSTEMS LTD,6875015,20/07/2020,110092,"1,015.23",0,Parts,192200,Facilities Security
South Lakeland District Council,http://opendatacommunities.org/id/district-council/south-lakeland,31/07/2020,Business Support Community Services,Cultural Environmental Regulatory & Planning Services,http://opendatacommunities.org/def/concept/finance/sercop/objective/104,ARCO LIMITED,133804,15/07/2020,110551,"1,064.81",0,Cleaning materials,141100,Clothing Protective
South Lakeland District Council,http://opendatacommunities.org/id/district-council/south-lakeland,31/07/2020,Business Support Community Services,Cultural Environmental Regulatory & Planning Services,http://opendatacommunities.org/def/concept/finance/sercop/objective/104,Masterstaff Limited,2777593,13/07/2020,110289,"1,076.40",0,Agency staff 2020/21,261300,HR Recruitment & Assessment
South Lakeland District Council,http://opendatacommunities.org/id/district-council/south-lakeland,31/07/2020,Business Support Community Services,Cultural Environmental Regulatory & Planning Services,http://opendatacommunities.org/def/concept/finance/sercop/objective/104,Masterstaff Limited,2777593,15/07/2020,110467,"1,076.40",0,Agency staff 2020/21,261300,HR Recruitment & Assessment
South Lakeland District Council,http://opendatacommunities.org/id/district-council/south-lakeland,31/07/2020,Business Support Community Services,Cultural Environmental Regulatory & Planning Services,http://opendatacommunities.org/def/concept/finance/sercop/objective/104,Masterstaff Limited,2777593,22/07/2020,110699,"1,076.40",0,Agency staff 2020/21,261300,HR Recruitment & Assessment
South Lakeland District Council,http://opendatacommunities.org/id/district-council/south-lakeland,31/07/2020,Case Management People,Housing Services,http://opendatacommunities.org/def/concept/finance/sercop/objective/108,Landlord,,13/07/2020,110416,"1,080.00",0,"Deposit Longpool, Kendal",250000,Housing
South Lakeland District Council,http://opendatacommunities.org/id/district-council/south-lakeland,31/07/2020,Case Management Account Mgmt,Cultural Environmental Regulatory & Planning Services,http://opendatacommunities.org/def/concept/finance/sercop/objective/104,LAMBERT SMITH HAMPTON GROUP,2521225,15/07/2020,109067,"1,125.00",0,Viability appraisal assessments for,191700,Facilities Property Management
South Lakeland District Council,http://opendatacommunities.org/id/district-council/south-lakeland,31/07/2020,Case Management Account Mgmt,Central Services,http://opendatacommunities.org/def/concept/finance/sercop/objective/102,IRRV SERVICES,,13/07/2020,110309,"1,187.50",0,South Lakeland District Council,151000,Consultancy Business
South Lakeland District Council,http://opendatacommunities.org/id/district-council/south-lakeland,31/07/2020,Case Management People,Housing Services,http://opendatacommunities.org/def/concept/finance/sercop/objective/108,Mr David Rigg,,13/07/2020,110470,"1,190.00",0,"Monthly rent Flat 1A Kentworks, Kendal",202000,Financial Services Rents
South Lakeland District Council,http://opendatacommunities.org/id/district-council/south-lakeland,31/07/2020,Human Resources,Central Services,http://opendatacommunities.org/def/concept/finance/sercop/objective/102,THE KNOWLEDGE ACADEMY,,13/07/2020,110220,"1,195.00",0,Flexi Pass,179999,Education Not Elsewhere Classified
South Lakeland District Council,http://opendatacommunities.org/id/district-council/south-lakeland,31/07/2020,Business Support Community Services,Cultural Environmental Regulatory & Planning Services,http://opendatacommunities.org/def/concept/finance/sercop/objective/104,ARCO LIMITED,133804,22/07/2020,110692,"1,224.90",0,Cleaning materials,141100,Clothing Protective
South Lakeland District Council,http://opendatacommunities.org/id/district-council/south-lakeland,31/07/2020,Business Support Community Services,Cultural Environmental Regulatory & Planning Services,http://opendatacommunities.org/def/concept/finance/sercop/objective/104,CUMBRIA WASTE RECYCLING LTD,3162439,22/07/2020,110726,"1,230.30",0,Skip emptying at Ecclerigg & Ulverston,182012,Environment Waste Management Recycling
South Lakeland District Council,http://opendatacommunities.org/id/district-council/south-lakeland,31/07/2020,Development Management,Cultural Environmental Regulatory & Planning Services,http://opendatacommunities.org/def/concept/finance/sercop/objective/104,LAMBERT SMITH HAMPTON GROUP,2521225,06/07/2020,109066,"1,250.00",0,"Viability Appraisal SL/2018/0311, Land",191700,Facilities Property Management
South Lakeland District Council,http://opendatacommunities.org/id/district-council/south-lakeland,31/07/2020,Business Support Community Services,Cultural Environmental Regulatory & Planning Services,http://opendatacommunities.org/def/concept/finance/sercop/objective/104,Harry Park Tyres Ltd,8131208,29/07/2020,110864,"1,260.00",0,Tyres,381500,Vehicle Mgt Parts
South Lakeland District Council,http://opendatacommunities.org/id/district-council/south-lakeland,31/07/2020,Business Support Community Services,Cultural Environmental Regulatory & Planning Services,http://opendatacommunities.org/def/concept/finance/sercop/objective/104,ARCO LIMITED,133804,15/07/2020,110547,"1,280.39",0,Cleaning materials,141100,Clothing Protective
South Lakeland District Council,http://opendatacommunities.org/id/district-council/south-lakeland,31/07/2020,Business Support Community Services,Cultural Environmental Regulatory & Planning Services,http://opendatacommunities.org/def/concept/finance/sercop/objective/104,CUMBRIA WASTE RECYCLING LTD,3162439,22/07/2020,110728,"1,292.14",0,Skip emptying at Ecclerigg & Ulverston,182012,Environment Waste Management Recycling
South Lakeland District Council,http://opendatacommunities.org/id/district-council/south-lakeland,31/07/2020,Business Support Community Services,Cultural Environmental Regulatory & Planning Services,http://opendatacommunities.org/def/concept/finance/sercop/objective/104,CUMBRIA WASTE RECYCLING LTD,3162439,22/07/2020,110729,"1,313.60",0,Skip emptying at Ecclerigg & Ulverston,182012,Environment Waste Management Recycling
South Lakeland District Council,http://opendatacommunities.org/id/district-council/south-lakeland,31/07/2020,Support Services,Other Items,,NEWSQUEST MEDIA GROUP LTD,3102566,13/07/2020,110371,"1,350.00",0,Reopening High Streets Safely,191000,Facilities Advertising
South Lakeland District Council,http://opendatacommunities.org/id/district-council/south-lakeland,31/07/2020,Case Management People,Housing Services,http://opendatacommunities.org/def/concept/finance/sercop/objective/108,D Clark Properties,,13/07/2020,110459,"1,350.00",0,Accommodation 3 weeks w/c 13/07/2020,250000,Housing
South Lakeland District Council,http://opendatacommunities.org/id/district-council/south-lakeland,31/07/2020,Development Implementation,Cultural Environmental Regulatory & Planning Services,http://opendatacommunities.org/def/concept/finance/sercop/objective/104,Helen Moriarty,,13/07/2020,110300,"1,353.75",0,Project Management Officer for Bowness,151000,Consultancy Business
South Lakeland District Council,http://opendatacommunities.org/id/district-council/south-lakeland,31/07/2020,Case Management Regulatory,Central Services,http://opendatacommunities.org/def/concept/finance/sercop/objective/102,Carrington West,,27/07/2020,110789,"1,396.50",0,PLANNING CONTRACTORS,159999,Consultancy Not Elsewhere Classified
South Lakeland District Council,http://opendatacommunities.org/id/district-council/south-lakeland,31/07/2020,Case Management People,Housing Services,http://opendatacommunities.org/def/concept/finance/sercop/objective/108,FIONA & JOHN ARMER,,13/07/2020,110404,"1,400.54",0,Reimbursement of costs for annual,250000,Housing
South Lakeland District Council,http://opendatacommunities.org/id/district-council/south-lakeland,31/07/2020,Human Resources,Central Services,http://opendatacommunities.org/def/concept/finance/sercop/objective/102,LAKES TRAINING SOLUTIONS LTD,7541345,27/07/2020,110559,"1,500.00",0,Customer Service Training with Guy,261500,HR Training & Conferences
South Lakeland District Council,http://opendatacommunities.org/id/district-council/south-lakeland,31/07/2020,Business Support Community Services,Central Services,http://opendatacommunities.org/def/concept/finance/sercop/objective/102,LAKE DISTRICT NATIONAL PARK AUTHORITY,,13/07/2020,110298,"1,502.50",0,LAND CHARGE SEARCH ENQUIRIES LDNPA,201700,Financial Services Grants
South Lakeland District Council,http://opendatacommunities.org/id/district-council/south-lakeland,31/07/2020,Support Services,Central Services,http://opendatacommunities.org/def/concept/finance/sercop/objective/102,Wynn Griffiths & Tarr Ltd,11469808,06/07/2020,110096,"1,545.00",0,Moving paintings & artwork from KTH,219999,Furniture Not Elsewhere Classified
South Lakeland District Council,http://opendatacommunities.org/id/district-council/south-lakeland,31/07/2020,Case Management Account Mgmt,Cultural Environmental Regulatory & Planning Services,http://opendatacommunities.org/def/concept/finance/sercop/objective/104,SOUTH LAKES TREE SURGEONS & LANDSCAPES,5342745,08/07/2020,110221,"1,560.00",0,"Clear up fallen Ash limb, fell",241210,Horticultural Tree Trimming
South Lakeland District Council,http://opendatacommunities.org/id/district-council/south-lakeland,31/07/2020,Support Services,Other Items,,ORMROD SIGNS LTD,4533430,06/07/2020,108798,"1,585.00",0,Kendal Town Hall Banner,102400,Building Signage
South Lakeland District Council,http://opendatacommunities.org/id/district-council/south-lakeland,31/07/2020,Support Services,Central Services,http://opendatacommunities.org/def/concept/finance/sercop/objective/102,ASSOCIATION OF ELECTORAL ADMINISTRATORS,2406897,27/07/2020,110793,"1,585.00",0,Certificate course 2020/21 for Laura,202100,Financial Services Subscriptions
South Lakeland District Council,http://opendatacommunities.org/id/district-council/south-lakeland,31/07/2020,Case Management Regulatory,Central Services,http://opendatacommunities.org/def/concept/finance/sercop/objective/102,Carrington West,,15/07/2020,110558,"1,596.00",0,PLANNING CONTRACTORS,159999,Consultancy Not Elsewhere Classified
South Lakeland District Council,http://opendatacommunities.org/id/district-council/south-lakeland,31/07/2020,Environment and Housing,Housing Services,http://opendatacommunities.org/def/concept/finance/sercop/objective/108,James Andrews Recruitment Solutions,6834852,13/07/2020,110389,"1,612.94",0,Agency worker for Community-led Housing,261400,HR Temporary & Agency Staff
South Lakeland District Council,http://opendatacommunities.org/id/district-council/south-lakeland,31/07/2020,Case Management Account Mgmt,Central Services,http://opendatacommunities.org/def/concept/finance/sercop/objective/102,Treescapes Consultancy Ltd,5607845,27/07/2020,110792,"1,623.08",0,Arboriculture Consultancy Services,159999,Consultancy Not Elsewhere Classified
South Lakeland District Council,http://opendatacommunities.org/id/district-council/south-lakeland,31/07/2020,Case Management Regulatory,Central Services,http://opendatacommunities.org/def/concept/finance/sercop/objective/102,The Oyster Partnership,5020374,29/07/2020,110784,"1,628.00",0,Agency Environmental Health Officer,261300,HR Recruitment & Assessment
South Lakeland District Council,http://opendatacommunities.org/id/district-council/south-lakeland,31/07/2020,Environment and Housing,Housing Services,http://opendatacommunities.org/def/concept/finance/sercop/objective/108,James Andrews Recruitment Solutions,6834852,27/07/2020,110754,"1,632.61",0,Agency worker for Community-led Housing,261400,HR Temporary & Agency Staff
South Lakeland District Council,http://opendatacommunities.org/id/district-council/south-lakeland,31/07/2020,Case Management Account Mgmt,SLDC as Agent,,ROYAL MAIL GROUP PLC,,13/07/2020,110357,"1,647.46",0,2020-21 Postal Charges a/c 0198123013,301200,Mail Services� Postage
South Lakeland District Council,http://opendatacommunities.org/id/district-council/south-lakeland,31/07/2020,Environment and Housing,Housing Services,http://opendatacommunities.org/def/concept/finance/sercop/objective/108,James Andrews Recruitment Solutions,6834852,13/07/2020,110179,"1,652.28",0,Agency worker for Community-led Housing,261400,HR Temporary & Agency Staff
South Lakeland District Council,http://opendatacommunities.org/id/district-council/south-lakeland,31/07/2020,Environment and Housing,Housing Services,http://opendatacommunities.org/def/concept/finance/sercop/objective/108,James Andrews Recruitment Solutions,6834852,20/07/2020,110568,"1,652.28",0,Agency worker for Community-led Housing,261400,HR Temporary & Agency Staff
South Lakeland District Council,http://opendatacommunities.org/id/district-council/south-lakeland,31/07/2020,Case Management Account Mgmt,Cultural Environmental Regulatory & Planning Services,http://opendatacommunities.org/def/concept/finance/sercop/objective/104,CONTINENTAL LANDSCAPES LTD,2108452,15/07/2020,110531,"1,680.00",0,Removal of spoil from Kendal cemetery,391310,Construction Open Spaces Construction
South Lakeland District Council,http://opendatacommunities.org/id/district-council/south-lakeland,31/07/2020,Support Services,Central Services,http://opendatacommunities.org/def/concept/finance/sercop/objective/102,Tribe Culture Change Ltd,,13/07/2020,110383,"1,721.50",0,Health & Safety Support Days,220000,Health and Safety
South Lakeland District Council,http://opendatacommunities.org/id/district-council/south-lakeland,31/07/2020,Case Management Regulatory,Central Services,http://opendatacommunities.org/def/concept/finance/sercop/objective/102,Carrington West,,06/07/2020,110094,"1,795.50",0,PLANNING CONTRACTORS,159999,Consultancy Not Elsewhere Classified
South Lakeland District Council,http://opendatacommunities.org/id/district-council/south-lakeland,31/07/2020,Business Support Community Services,Cultural Environmental Regulatory & Planning Services,http://opendatacommunities.org/def/concept/finance/sercop/objective/104,BRIAN ARMISTEAD LTD T/A SINKFALL RECYCLI,4133280,20/07/2020,110611,"1,832.23",0,Tipping charges - green waste,391110,Construction Buildings Construction
South Lakeland District Council,http://opendatacommunities.org/id/district-council/south-lakeland,31/07/2020,Case Management Account Mgmt,Cultural Environmental Regulatory & Planning Services,http://opendatacommunities.org/def/concept/finance/sercop/objective/104,RAINBOW SAFETY SURFACING LTD,4820611,20/07/2020,110624,"1,850.00",0,Repair at Sandylands playground - dig a,331000,Sports Playground Equipment
South Lakeland District Council,http://opendatacommunities.org/id/district-council/south-lakeland,31/07/2020,Case Management Account Mgmt,SLDC as Agent,,ROYAL MAIL GROUP PLC,,27/07/2020,110753,"1,879.90",0,2020-21 Postal Charges a/c 0198123013,301200,Mail Services� Postage
South Lakeland District Council,http://opendatacommunities.org/id/district-council/south-lakeland,31/07/2020,Human Resources,Central Services,http://opendatacommunities.org/def/concept/finance/sercop/objective/102,PILAT EUROPE LTD,4207292,08/07/2020,110209,"1,995.00",0,Invoice No.10017,271600,ICT Software Customised & Bespoke
South Lakeland District Council,http://opendatacommunities.org/id/district-council/south-lakeland,31/07/2020,ICT Group,Central Services,http://opendatacommunities.org/def/concept/finance/sercop/objective/102,IT PROFESSIONAL SERVICES (ITPS),,06/07/2020,108501,"2,000.00",0,500mb internet,279999,ICT Not Elsewhere Classified
South Lakeland District Council,http://opendatacommunities.org/id/district-council/south-lakeland,31/07/2020,Technical Team,Central Services,http://opendatacommunities.org/def/concept/finance/sercop/objective/102,Macdonald & Company Freelance Ltd,3882135,13/07/2020,110386,"2,007.00",0,PLANNING CONTRACT STAFF,261400,HR Temporary & Agency Staff
South Lakeland District Council,http://opendatacommunities.org/id/district-council/south-lakeland,31/07/2020,Technical Team,Central Services,http://opendatacommunities.org/def/concept/finance/sercop/objective/102,Macdonald & Company Freelance Ltd,3882135,20/07/2020,110633,"2,097.00",0,PLANNING CONTRACT STAFF,261400,HR Temporary & Agency Staff
South Lakeland District Council,http://opendatacommunities.org/id/district-council/south-lakeland,31/07/2020,Case Management Account Mgmt,Cultural Environmental Regulatory & Planning Services,http://opendatacommunities.org/def/concept/finance/sercop/objective/104,CONTINENTAL LANDSCAPES LTD,2108452,13/07/2020,110293,"2,106.86",0,Extra works for grounds maintenance,391310,Construction Open Spaces Construction
South Lakeland District Council,http://opendatacommunities.org/id/district-council/south-lakeland,31/07/2020,Technical Team,Central Services,http://opendatacommunities.org/def/concept/finance/sercop/objective/102,Macdonald & Company Freelance Ltd,3882135,27/07/2020,110790,"2,124.00",0,PLANNING CONTRACT STAFF,261400,HR Temporary & Agency Staff
South Lakeland District Council,http://opendatacommunities.org/id/district-council/south-lakeland,31/07/2020,Case Management People,Central Services,http://opendatacommunities.org/def/concept/finance/sercop/objective/102,MORGAN HUNT UK LIMITED,4349535,20/07/2020,110600,"2,159.55",0,Payment for ,269999,HR Not Elsewhere Classified
South Lakeland District Council,http://opendatacommunities.org/id/district-council/south-lakeland,31/07/2020,Case Management People,Central Services,http://opendatacommunities.org/def/concept/finance/sercop/objective/102,MORGAN HUNT UK LIMITED,4349535,27/07/2020,110781,"2,159.55",0,Payment for Carol Halton,269999,HR Not Elsewhere Classified
South Lakeland District Council,http://opendatacommunities.org/id/district-council/south-lakeland,31/07/2020,Case Management People,Central Services,http://opendatacommunities.org/def/concept/finance/sercop/objective/102,MORGAN HUNT UK LIMITED,4349535,13/07/2020,110176,"2,183.55",0,Payment for Carol Halton,269999,HR Not Elsewhere Classified
South Lakeland District Council,http://opendatacommunities.org/id/district-council/south-lakeland,31/07/2020,Business Support Community Services,Cultural Environmental Regulatory & Planning Services,http://opendatacommunities.org/def/concept/finance/sercop/objective/104,PENNINGTONS (KENDAL) LIMITED,434649,08/07/2020,110265,"2,200.00",0,Annual Charge for use of Link Road at,182013,Environment Waste Mgt Waste Collection
South Lakeland District Council,http://opendatacommunities.org/id/district-council/south-lakeland,31/07/2020,Case Management Account Mgmt,Cultural Environmental Regulatory & Planning Services,http://opendatacommunities.org/def/concept/finance/sercop/objective/104,CONTINENTAL LANDSCAPES LTD,2108452,22/07/2020,110731,"2,240.00",0,Removal of spoil from Grange  cemetery,391310,Construction Open Spaces Construction
South Lakeland District Council,http://opendatacommunities.org/id/district-council/south-lakeland,31/07/2020,Business Support Community Services,Central Services,http://opendatacommunities.org/def/concept/finance/sercop/objective/102,Richard A Majewicz,,13/07/2020,110377,"2,250.00",0,Conservation advice,159999,Consultancy Not Elsewhere Classified
South Lakeland District Council,http://opendatacommunities.org/id/district-council/south-lakeland,31/07/2020,Case Management People,Central Services,http://opendatacommunities.org/def/concept/finance/sercop/objective/102,MORGAN HUNT UK LIMITED,4349535,13/07/2020,110384,"2,255.53",0,Payment for ,269999,HR Not Elsewhere Classified
South Lakeland District Council,http://opendatacommunities.org/id/district-council/south-lakeland,31/07/2020,ICT Group,Central Services,http://opendatacommunities.org/def/concept/finance/sercop/objective/102,PROBRAND LTD,2653446,20/07/2020,110618,"2,443.52",0,MW473/PVR-00002 Microsoft - Microsoft,271600,ICT Software Customised & Bespoke
South Lakeland District Council,http://opendatacommunities.org/id/district-council/south-lakeland,31/07/2020,Support Services,Cultural Environmental Regulatory & Planning Services,http://opendatacommunities.org/def/concept/finance/sercop/objective/104,PS BUSINESS MATTERS,8147185,13/07/2020,110304,"2,500.00",0,Kendal Futures Programme Support,151900,Consultancy Management
South Lakeland District Council,http://opendatacommunities.org/id/district-council/south-lakeland,31/07/2020,Support Services,Central Services,http://opendatacommunities.org/def/concept/finance/sercop/objective/102,BEVAN BRITTAN,OC309219,20/07/2020,110601,"2,508.50",0,Strategic advice on template section,280000,Legal Services
South Lakeland District Council,http://opendatacommunities.org/id/district-council/south-lakeland,31/07/2020,Support Services,Other Items,,CASTLE ALARMS 1981 LTD,9231500,22/07/2020,110415,"2,598.50",0,Kendal Recovery Centre at Kendal,192212,Facilities Security Equipment
South Lakeland District Council,http://opendatacommunities.org/id/district-council/south-lakeland,31/07/2020,Development Management,Central Services,http://opendatacommunities.org/def/concept/finance/sercop/objective/102,The Oyster Partnership,5020374,20/07/2020,110627,"2,625.00",0,Supply of Contract workers for Planning,261300,HR Recruitment & Assessment
South Lakeland District Council,http://opendatacommunities.org/id/district-council/south-lakeland,31/07/2020,Case Management Account Mgmt,Cultural Environmental Regulatory & Planning Services,http://opendatacommunities.org/def/concept/finance/sercop/objective/104,Greaves Tree Services,,13/07/2020,110381,"2,700.00",0,"Wattsfield Lane, Kendal - coppice",241600,Horticultural Trees & Shrubs
South Lakeland District Council,http://opendatacommunities.org/id/district-council/south-lakeland,31/07/2020,Case Management People,Housing Services,http://opendatacommunities.org/def/concept/finance/sercop/objective/108,HOME GROUP LTD,IP22981R,13/07/2020,110379,"2,765.14",0,Lease of HMO as temporary accommodation,250000,Housing
South Lakeland District Council,http://opendatacommunities.org/id/district-council/south-lakeland,31/07/2020,Development Management,Central Services,http://opendatacommunities.org/def/concept/finance/sercop/objective/102,The Oyster Partnership,5020374,08/07/2020,110240,"2,782.50",0,Supply of Contract workers for Planning,261300,HR Recruitment & Assessment
South Lakeland District Council,http://opendatacommunities.org/id/district-council/south-lakeland,31/07/2020,Business Support Community Services,Cultural Environmental Regulatory & Planning Services,http://opendatacommunities.org/def/concept/finance/sercop/objective/104,BRIAN ARMISTEAD LTD T/A SINKFALL RECYCLI,4133280,20/07/2020,110610,"2,786.83",0,Tipping charges - green waste,391110,Construction Buildings Construction
South Lakeland District Council,http://opendatacommunities.org/id/district-council/south-lakeland,31/07/2020,Customer Services,Cultural Environmental Regulatory & Planning Services,http://opendatacommunities.org/def/concept/finance/sercop/objective/104,MILNTHORPE KENNELS & CATTERY,8932302,08/07/2020,110193,"2,791.67",0,Stray dog contract 2020/21 collection,181500,Environment Animal Services
South Lakeland District Council,http://opendatacommunities.org/id/district-council/south-lakeland,31/07/2020,Development Management,Central Services,http://opendatacommunities.org/def/concept/finance/sercop/objective/102,The Oyster Partnership,5020374,08/07/2020,110241,"2,800.00",0,Supply of Contract workers for Planning,261300,HR Recruitment & Assessment
South Lakeland District Council,http://opendatacommunities.org/id/district-council/south-lakeland,31/07/2020,ICT Group,Central Services,http://opendatacommunities.org/def/concept/finance/sercop/objective/102,VODAFONE LIMITED,1471587,13/07/2020,110375,"2,936.85",0,Mobile Phone calls,271800,ICT Telecommunications Mobile
South Lakeland District Council,http://opendatacommunities.org/id/district-council/south-lakeland,31/07/2020,Development Management,Central Services,http://opendatacommunities.org/def/concept/finance/sercop/objective/102,The Oyster Partnership,5020374,13/07/2020,110390,"2,963.10",0,Supply of Contract workers for Planning,261300,HR Recruitment & Assessment
South Lakeland District Council,http://opendatacommunities.org/id/district-council/south-lakeland,31/07/2020,Development Management,Central Services,http://opendatacommunities.org/def/concept/finance/sercop/objective/102,The Oyster Partnership,5020374,27/07/2020,110783,"2,975.00",0,Supply of Contract workers for Planning,261300,HR Recruitment & Assessment
South Lakeland District Council,http://opendatacommunities.org/id/district-council/south-lakeland,31/07/2020,Case Management People,Housing Services,http://opendatacommunities.org/def/concept/finance/sercop/objective/108,MANNA HOUSE,8041948,06/07/2020,110098,"3,000.00",0,Housing Advice and Advocacy,250000,Housing
South Lakeland District Council,http://opendatacommunities.org/id/district-council/south-lakeland,31/07/2020,Democratic and Member Services,Central Services,http://opendatacommunities.org/def/concept/finance/sercop/objective/102,Browne Jacobson LLP,OC306448,29/07/2020,110876,"3,166.00",0,Solicitor fees-Coastal Communities Fund,281200,Legal Services General Support
South Lakeland District Council,http://opendatacommunities.org/id/district-council/south-lakeland,31/07/2020,Case Management Account Mgmt,Central Services,http://opendatacommunities.org/def/concept/finance/sercop/objective/102,IRRV SERVICES,,13/07/2020,110308,"3,375.00",0,South Lakeland District Council,151000,Consultancy Business
South Lakeland District Council,http://opendatacommunities.org/id/district-council/south-lakeland,31/07/2020,Business Support Community Services,Cultural Environmental Regulatory & Planning Services,http://opendatacommunities.org/def/concept/finance/sercop/objective/104,Initial,1298292,15/07/2020,110469,"3,593.29",0,Clinical waste collections - 2020/21,131011,Cleaning & Janitorial Cleaning Materials
South Lakeland District Council,http://opendatacommunities.org/id/district-council/south-lakeland,31/07/2020,Development Implementation,Culture and Related Serv,http://opendatacommunities.org/def/concept/finance/sercop/objective/104,LAMBERT SMITH HAMPTON GROUP,2521225,20/07/2020,110592,"3,690.50",0,Grange Promenade - Structural Repairs,191700,Facilities Property Management
South Lakeland District Council,http://opendatacommunities.org/id/district-council/south-lakeland,31/07/2020,Support Services,Other Items,,PS BUSINESS MATTERS,8147185,20/07/2020,110435,"3,750.00",0,Project Assistance for Reopening High,151900,Consultancy Management
South Lakeland District Council,http://opendatacommunities.org/id/district-council/south-lakeland,31/07/2020,ICT Group,Central Services,http://opendatacommunities.org/def/concept/finance/sercop/objective/102,VODAFONE LIMITED,1471587,08/07/2020,110257,"3,777.82",0,Mobile Phone calls,271800,ICT Telecommunications Mobile
South Lakeland District Council,http://opendatacommunities.org/id/district-council/south-lakeland,31/07/2020,Support Services,Other Items,,GRANTS- MISCELLANEOUS,,08/07/2020,110311,"3,858.50",0,Grant: Corona Virus Additional Support,201700,Financial Services Grants
South Lakeland District Council,http://opendatacommunities.org/id/district-council/south-lakeland,31/07/2020,Technical Team,Central Services,http://opendatacommunities.org/def/concept/finance/sercop/objective/102,Macdonald & Company Freelance Ltd,3882135,13/07/2020,110367,"4,468.50",0,PLANNING CONTRACT STAFF,261400,HR Temporary & Agency Staff
South Lakeland District Council,http://opendatacommunities.org/id/district-council/south-lakeland,31/07/2020,Development Management,Cultural Environmental Regulatory & Planning Services,http://opendatacommunities.org/def/concept/finance/sercop/objective/104,LAMBERT SMITH HAMPTON GROUP,2521225,13/07/2020,110438,"4,800.00",0,Services from LSH for Development,191700,Facilities Property Management
South Lakeland District Council,http://opendatacommunities.org/id/district-council/south-lakeland,31/07/2020,Business Support Community Services,Cultural Environmental Regulatory & Planning Services,http://opendatacommunities.org/def/concept/finance/sercop/objective/104,Harry Park Tyres Ltd,8131208,13/07/2020,110429,"4,932.50",0,Tyres,381500,Vehicle Mgt Parts
South Lakeland District Council,http://opendatacommunities.org/id/district-council/south-lakeland,31/07/2020,Business Support Community Services,Culture and Related Serv,http://opendatacommunities.org/def/concept/finance/sercop/objective/104,GRANTS- MISCELLANEOUS,,02/07/2020,109141,"5,000.00",0,18-19 LIPs grant for Kirkby in Furness,201700,Financial Services Grants
South Lakeland District Council,http://opendatacommunities.org/id/district-council/south-lakeland,31/07/2020,ICT Group,Central Services,http://opendatacommunities.org/def/concept/finance/sercop/objective/102,Insight Direct (Uk) Ltd,2579852,29/07/2020,108814,"5,514.20",0,"Dell Vostro 5590 - 15.6"" - Core i5",271200,ICT Hardware
South Lakeland District Council,http://opendatacommunities.org/id/district-council/south-lakeland,31/07/2020,Business Support Community Services,Cultural Environmental Regulatory & Planning Services,http://opendatacommunities.org/def/concept/finance/sercop/objective/104,RPC BPI RECYCLED PRODUCTS,350729,08/07/2020,110268,"6,428.24",0,Black liners - 455x785x990 50/F 400/PK,182013,Environment Waste Mgt Waste Collection
South Lakeland District Council,http://opendatacommunities.org/id/district-council/south-lakeland,31/07/2020,Development Implementation,Transport,http://opendatacommunities.org/def/concept/finance/sercop/objective/107,COLIN BRISCOE CONSTRUCTION LTD,2884282,22/07/2020,110591,"6,704.81",0,SL House Car Park Works,191700,Facilities Property Management
South Lakeland District Council,http://opendatacommunities.org/id/district-council/south-lakeland,31/07/2020,Customer Services,Cultural Environmental Regulatory & Planning Services,http://opendatacommunities.org/def/concept/finance/sercop/objective/104,RIGHT 2 WORK,,22/07/2020,110178,"6,882.00",0,Bulky waste collection scheme 2020/21,321010,Social Care Adult Advice & Counselling
South Lakeland District Council,http://opendatacommunities.org/id/district-council/south-lakeland,31/07/2020,Case Management People,Housing Services,http://opendatacommunities.org/def/concept/finance/sercop/objective/108,Locata Housing Services Ltd,,29/07/2020,110874,"8,000.00",0,Year 3 Support Charges Apr 20 - Mar 21,271440,ICT Software
South Lakeland District Council,http://opendatacommunities.org/id/district-council/south-lakeland,31/07/2020,Financial Services,SLDC as Agent,,Zurich Municipal (BACS),BR7985,22/07/2020,110638,"8,280.38",0,Insurance Premium including IPT,201800,Financial Services Insurance
South Lakeland District Council,http://opendatacommunities.org/id/district-council/south-lakeland,31/07/2020,Human Resources,Central Services,http://opendatacommunities.org/def/concept/finance/sercop/objective/102,Reach Printing Services Limited,2064914,13/07/2020,110420,"9,433.71",0,Print Cost - South Lakeland News,191600,Facilities Printing
South Lakeland District Council,http://opendatacommunities.org/id/district-council/south-lakeland,31/07/2020,Business Support Community Services,Cultural Environmental Regulatory & Planning Services,http://opendatacommunities.org/def/concept/finance/sercop/objective/104,CUMBRIA WASTE RECYCLING LTD,3162439,13/07/2020,110425,"11,673.60",0,Empty recycling banks in 2020/21,182012,Environment Waste Management Recycling
South Lakeland District Council,http://opendatacommunities.org/id/district-council/south-lakeland,31/07/2020,ICT Group,Central Services,http://opendatacommunities.org/def/concept/finance/sercop/objective/102,CWSI UK Ltd,8032836,15/07/2020,108886,"12,550.00",0,MobileIron Enterprise Mobility,271300,Information communication Maintenance
South Lakeland District Council,http://opendatacommunities.org/id/district-council/south-lakeland,31/07/2020,Case Management Account Mgmt,Central Services,http://opendatacommunities.org/def/concept/finance/sercop/objective/102,MERITEC LTD,3224622,13/07/2020,110269,"13,708.50",0,Specialist Remote Revenues Processing,391200,Construction Engineering
South Lakeland District Council,http://opendatacommunities.org/id/district-council/south-lakeland,31/07/2020,Case Management Account Mgmt,Non-Service Payments,,Kendal BID Ltd,8986243,15/07/2020,110560,"14,300.00",0,BID Money Collected,201700,Financial Services Grants
South Lakeland District Council,http://opendatacommunities.org/id/district-council/south-lakeland,31/07/2020,Financial Services,SLDC as Agent,,Zurich Municipal (BACS),BR7985,22/07/2020,110637,"16,296.31",0,Insurance Premium including IPT,201800,Financial Services Insurance
South Lakeland District Council,http://opendatacommunities.org/id/district-council/south-lakeland,31/07/2020,ICT Group,Central Services,http://opendatacommunities.org/def/concept/finance/sercop/objective/102,PROBRAND LTD,2653446,20/07/2020,110619,"16,595.20",0,MW473/PVR-00002 Microsoft - Microsoft,271600,ICT Software Customised & Bespoke
South Lakeland District Council,http://opendatacommunities.org/id/district-council/south-lakeland,31/07/2020,Support Services,Transport,http://opendatacommunities.org/def/concept/finance/sercop/objective/107,John Wade Groundworks Ltd,4836715,06/07/2020,110095,"18,502.50",0,Landscaping works at Grasmere,100000,Building Construction materials
South Lakeland District Council,http://opendatacommunities.org/id/district-council/south-lakeland,31/07/2020,Business Support Community Services,Cultural Environmental Regulatory & Planning Services,http://opendatacommunities.org/def/concept/finance/sercop/objective/104,CUMBRIA COUNTY COUNCIL,,13/07/2020,110202,"20,873.21",0,"Tipping & disposal charges, recyclables",908000,Public Bodies Council support services
South Lakeland District Council,http://opendatacommunities.org/id/district-council/south-lakeland,31/07/2020,Financial Services,SLDC as Agent,,Zurich Municipal (BACS),BR7985,22/07/2020,110640,"28,602.27",0,Insurance Premium including IPT,201800,Financial Services Insurance
South Lakeland District Council,http://opendatacommunities.org/id/district-council/south-lakeland,31/07/2020,ICT Group,Central Services,http://opendatacommunities.org/def/concept/finance/sercop/objective/102,Insight Direct (Uk) Ltd,2579852,20/07/2020,110586,"31,608.21",0,"Dell Vostro 5590 - 15.6"" - Core i5",271200,ICT Hardware
South Lakeland District Council,http://opendatacommunities.org/id/district-council/south-lakeland,31/07/2020,Support Services,Housing,http://opendatacommunities.org/def/concept/finance/sercop/objective/108,Howe Projects Ltd,,13/07/2020,110382,"39,911.94",0,Refurbishment of Hampsfell Depot,109999,Building Not Elsewhere Classified
South Lakeland District Council,http://opendatacommunities.org/id/district-council/south-lakeland,31/07/2020,Support Services,Cultural Environmental Regulatory & Planning Services,http://opendatacommunities.org/def/concept/finance/sercop/objective/104,Craven District Council,,20/07/2020,110644,"50,000.00",0,SLDC Great Places Partnership Yrs 2 & 3,908000,Public Bodies Council support services
South Lakeland District Council,http://opendatacommunities.org/id/district-council/south-lakeland,31/07/2020,Case Management Regulatory,Cultural Environmental Regulatory & Planning Services,http://opendatacommunities.org/def/concept/finance/sercop/objective/104,Greenwich Leisure Ltd,,02/07/2020,108825,"55,407.50",0,Leisure Management Fees - Quarterly,291400,Arts & Leisure Services Sport & Fitness
South Lakeland District Council,http://opendatacommunities.org/id/district-council/south-lakeland,31/07/2020,Support Services,Central Services,http://opendatacommunities.org/def/concept/finance/sercop/objective/102,CUMBRIA LGPS,,22/07/2020,110595,"70,154.43",0,20/21 CCC Contribution re. past pensions,908999,Public Bodies Not Elsewhere Classified
South Lakeland District Council,http://opendatacommunities.org/id/district-council/south-lakeland,31/07/2020,Support Services,Central Services,http://opendatacommunities.org/def/concept/finance/sercop/objective/102,LAMBERT SMITH HAMPTON GROUP,2521225,13/07/2020,110395,"81,543.50",0,Property Service Contract (Apr - Sept),191700,Facilities Property Management
South Lakeland District Council,http://opendatacommunities.org/id/district-council/south-lakeland,31/07/2020,Business Support Community Services,Central Services,http://opendatacommunities.org/def/concept/finance/sercop/objective/102,DENNIS EAGLE LTD,3794455,02/07/2020,109140,"121,486.00",0,12.0t RCV via ESPO Framework 215_9 Lot 1,381300,Vehicle Mgt Industrial
South Lakeland District Council,http://opendatacommunities.org/id/district-council/south-lakeland,31/07/2020,Business Support Community Services,Central Services,http://opendatacommunities.org/def/concept/finance/sercop/objective/102,DENNIS EAGLE LTD,3794455,22/07/2020,110545,"175,384.00",0,26.0t RCV via ESPO Framework 215_9 Lot 1,381300,Vehicle Mgt Industrial
South Lakeland District Council,http://opendatacommunities.org/id/district-council/south-lakeland,31/07/2020,Business Support Community Services,Central Services,http://opendatacommunities.org/def/concept/finance/sercop/objective/102,DENNIS EAGLE LTD,3794455,27/07/2020,110760,"175,384.00",0,26.0t RCV via ESPO Framework 215_9 Lot 1,381300,Vehicle Mgt Industrial
South Lakeland District Council,http://opendatacommunities.org/id/district-council/south-lakeland,31/07/2020,Business Support Community Services,Central Services,http://opendatacommunities.org/def/concept/finance/sercop/objective/102,DENNIS EAGLE LTD,3794455,22/07/2020,110766,"175,384.00",0,26.0t RCV via ESPO Framework 215_9 Lot 1,381300,Vehicle Mgt Industrial
South Lakeland District Council,http://opendatacommunities.org/id/district-council/south-lakeland,31/07/2020,Business Support Community Services,Central Services,http://opendatacommunities.org/def/concept/finance/sercop/objective/102,DENNIS EAGLE LTD,3794455,27/07/2020,110767,"175,384.00",0,26.0t RCV via ESPO Framework 215_9 Lot 1,381300,Vehicle Mgt Industrial
South Lakeland District Council,http://opendatacommunities.org/id/district-council/south-lakeland,31/07/2020,Business Support Community Services,Central Services,http://opendatacommunities.org/def/concept/finance/sercop/objective/102,DENNIS EAGLE LTD,3794455,27/07/2020,110799,"175,384.00",0,26.0t RCV via ESPO Framework 215_9 Lot 1,381300,Vehicle Mgt Industrial
South Lakeland District Council,http://opendatacommunities.org/id/district-council/south-lakeland,31/07/2020,Financial Services,SLDC as Agent,,Zurich Municipal (BACS),BR7985,20/07/2020,110589,"296,798.40",0,Insurance Premium including IPT,201800,Financial Services Insurance
